bitfinex/quotes_BTCUSD_20240701
["timestamp","ask_amount","ask_price","bid_price","bid_amount"]
[1719844590139,0.00841,62954.0,62953.0,0.70458685]
[1719844590318,0.00841,62954.0,62953.0,1.58535383]
[1719844590517,0.00841,62954.0,62953.0,2.19367667]
[1719844590974,0.0084,62957.0,62955.0,1.73994585]
[1719844591209,0.0084,62982.0,62975.0,0.02804185]
[1719844591399,0.0084,62982.0,62975.0,1.36947683]
[1719844591631,0.01980593,62976.0,62975.0,1.66947683]
[1719844591803,0.0084,62976.0,62975.0,2.10406139]
[1719844592559,0.0084,62976.0,62975.0,2.05724878]
[1719844592796,0.0084,62976.0,62975.0,2.01006283]
[1719844593329,0.0124883,63004.0,63003.0,0.10634185]
[1719844593529,0.0124883,63004.0,63003.0,0.64693383]
[1719844593736,0.0124883,63004.0,63003.0,0.96437883]
[1719844593943,0.0124883,63004.0,63003.0,0.33921183]
[1719844594197,0.0124883,63004.0,63003.0,0.17687285]
[1719844594807,0.1506883,63004.0,63003.0,0.158831]
[1719844595210,0.16076097,63004.0,63003.0,0.158831]
[1719844595612,0.16076097,63004.0,63003.0,0.17687285]
[1719844596041,0.1506883,63004.0,63003.0,0.17687285]
[1719844596277,0.1516883,63004.0,63003.0,0.19287285]
[1719844596478,0.16176097,63004.0,63003.0,0.19287285]
[1719844596668,0.16176097,63004.0,63003.0,0.163831]
[1719844596808,0.16176097,63004.0,63003.0,0.18187285]
[1719844597010,0.16176097,63004.0,63003.0,0.163831]
[1719844597215,0.16176097,63004.0,63003.0,0.165831]
[1719844597418,0.1516883,63004.0,63003.0,0.165831]
[1719844597635,0.16176097,63004.0,63003.0,0.005]
[1719844597845,0.16076097,63004.0,62999.0,0.01804185]
[1719844598056,0.16076097,63004.0,63003.0,0.004]
[1719844598478,0.16076097,63004.0,62998.0,0.01804185]
[1719844598893,0.16076097,63004.0,63003.0,0.003]
[1719844598894,0.63692097,63004.0,63003.0,0.003]
[1719844600565,0.63692097,63004.0,63003.0,0.005]
[1719844601030,0.63692097,63004.0,62995.0,0.158831]
[1719844601031,0.317453,63002.0,62995.0,0.158831]
[1719844601268,0.317461,63000.0,62995.0,0.158831]
[1719844601474,0.22424,62996.0,62995.0,0.158831]
[1719844601707,0.22424,62996.0,62978.0,0.47155701]
[1719844601708,0.46578,62996.0,62988.0,0.158831]
[1719844601847,0.158757,62989.0,62988.0,0.158831]
[1719844602408,0.158766,62986.0,62978.0,0.48959886]
[1719844602651,0.158774,62983.0,62981.0,0.01804185]
[1719844603109,0.01017391,62982.0,62981.0,0.01804185]
[1719844603540,0.01017391,62982.0,62972.0,0.158831]
[1719844603541,0.15877,62984.0,62983.0,0.01804185]
[1719844603988,0.01014515,62984.0,62981.0,0.01804185]
[1719844604199,0.01014515,62984.0,62974.0,0.01804185]
[1719844604200,0.158776,62982.0,62974.0,0.01804185]
[1719844604437,0.07934304,62981.0,62973.0,0.01804185]
[1719844604652,0.07934304,62981.0,62970.0,0.01804185]
[1719844604653,0.158798,62973.0,62970.0,0.01804185]
[1719844605091,0.158803,62971.0,62970.0,0.01804185]
[1719844605332,0.158803,62971.0,62969.0,0.47155701]
[1719844605333,0.158804,62971.0,62969.0,0.48959886]
[1719844605544,0.01018567,62971.0,62970.0,0.01804185]
[1719844605806,0.0651,62971.0,62970.0,0.01804185]
[1719844606036,0.0651,62971.0,62969.0,0.47155701]
[1719844606037,0.07528406,62971.0,62969.0,0.47155701]
[1719844606267,0.555316,62970.0,62969.0,0.47155701]
[1719844606478,0.0789,62970.0,62967.0,0.01804185]
[1719844606696,0.476431,62968.0,62967.0,0.01804185]
[1719844606929,0.158814,62967.0,62963.0,0.01804185]
[1719844607176,0.0789,62970.0,62967.0,0.01804185]
[1719844607391,0.158808,62969.0,62967.0,0.01804185]
[1719844607910,0.158808,62969.0,62968.0,0.01804185]
[1719844608124,0.0789,62970.0,62969.0,0.01804185]
[1719844608541,0.237705,62970.0,62969.0,0.01804185]
[1719844608960,0.237705,62970.0,62967.0,0.01804185]
[1719844609162,0.158808,62969.0,62967.0,0.01804185]
[1719844609626,0.0789,62970.0,62957.0,0.48155701]
[1719844609627,0.001,62970.0,62969.0,0.02504185]
[1719844609859,0.001,62970.0,62969.0,0.001]
[1719844610093,0.001,62971.0,62967.0,0.01804185]
[1719844610094,0.158803,62971.0,62967.0,0.01804185]
[1719844610318,0.001,62970.0,62967.0,0.02504185]
[1719844610804,0.158809,62969.0,62967.0,0.02504185]
[1719844611060,0.001,62970.0,62967.0,0.02504185]
[1719844611311,0.159809,62969.0,62967.0,0.01904185]
[1719844612018,0.159809,62969.0,62968.0,0.01804185]
[1719844612249,0.001,62969.0,62968.0,0.01804185]
[1719844613505,0.001,62969.0,62966.0,0.158831]
[1719844613506,0.158781,62980.0,62970.0,0.01804185]
[1719844613739,0.15879,62976.0,62974.0,0.01804185]
[1719844613969,0.158794,62975.0,62971.0,0.01804185]
[1719844614195,0.464679,62977.0,62972.0,0.01804185]
[1719844614431,0.158794,62975.0,62974.0,0.01804185]
[1719844614693,0.464679,62977.0,62976.0,0.01804185]
[1719844614694,0.1471,62977.0,62976.0,0.01804185]
[1719844614924,0.1471,62977.0,62968.0,0.158831]
[1719844614925,0.1471,62977.0,62974.0,0.01804185]
[1719844615157,0.01,62976.0,62975.0,0.01804185]
[1719844615846,0.01,62976.0,62974.0,0.001]
[1719844616047,0.168791,62976.0,62974.0,0.001]
[1719844616382,0.168791,62976.0,62974.0,0.01904185]
[1719844616587,0.01,62976.0,62975.0,0.01804185]
[1719844616908,0.1471,62977.0,62974.0,0.01804185]
[1719844616909,0.305889,62977.0,62974.0,0.01804185]
[1719844617274,0.002,62975.0,62971.0,0.01804185]
[1719844617471,0.002,62975.0,62969.0,0.01804185]
[1719844617676,0.158796,62974.0,62971.0,0.01804185]
[1719844618094,0.158798,62973.0,62971.0,0.01804185]
[1719844618572,0.317588,62975.0,62968.0,0.17687285]
[1719844618573,0.158801,62972.0,62968.0,0.17687285]
[1719844619038,0.317588,62975.0,62968.0,0.17687285]
[1719844619039,0.01006173,62971.0,62968.0,0.158831]
[1719844619257,0.158817,62966.0,62963.0,0.01804185]
[1719844619723,0.01004635,62965.0,62963.0,0.01804185]
[1719844620207,0.01004635,62965.0,62961.0,0.01804185]
[1719844620442,0.01004635,62965.0,62963.0,0.01804185]
[1719844620682,0.01004635,62965.0,62964.0,0.01804185]
[1719844620980,0.317616,62969.0,62964.0,0.01804185]
[1719844620981,0.317617,62969.0,62964.0,0.01804185]
[1719844621163,0.01004635,62965.0,62964.0,0.01804185]
[1719844621407,0.001,62965.0,62964.0,0.01804185]
[1719844621629,0.001,62965.0,62963.0,0.007]
[1719844621854,0.01004635,62965.0,62964.0,0.01804185]
[1719844622086,0.01004635,62965.0,62963.0,0.01804185]
[1719844622087,0.001,62965.0,62963.0,0.01804185]
[1719844622332,0.16986435,62965.0,62962.0,0.01804185]
[1719844623078,0.0604,62964.0,62963.0,0.01804185]
[1719844623325,0.16986435,62965.0,62960.0,0.158831]
[1719844623326,0.001,62965.0,62964.0,0.01804185]
[1719844623551,0.399278,62977.0,62971.0,0.01804185]
[1719844623552,0.158798,62973.0,62971.0,0.01804185]
[1719844624053,0.158796,62974.0,62971.0,0.01804185]
[1719844624303,0.399278,62977.0,62974.0,0.01804185]
[1719844624304,0.240489,62977.0,62974.0,0.01804185]
[1719844624547,0.0817,62977.0,62973.0,0.01804185]
[1719844624783,0.158795,62975.0,62970.0,0.01804185]
[1719844625030,0.158801,62972.0,62969.0,0.158831]
[1719844625759,0.317592,62974.0,62971.0,0.01804185]
[1719844625760,0.158797,62974.0,62971.0,0.01804185]
[1719844626244,0.317582,62976.0,62969.0,0.158831]
[1719844626245,0.158805,62970.0,62969.0,0.158831]
[1719844626476,0.317582,62976.0,62969.0,0.158831]
[1719844626477,0.158801,62972.0,62969.0,0.158831]
[1719844626724,0.317582,62976.0,62971.0,0.01804185]
[1719844626948,0.317572,62978.0,62973.0,0.01804185]
[1719844627396,0.158792,62976.0,62973.0,0.01804185]
[1719844627626,0.158792,62976.0,62974.0,0.01804185]
[1719844627863,0.0604,62980.0,62979.0,0.01804185]
[1719844628118,0.317531,62986.0,62982.0,0.01804185]
[1719844628119,0.222369,62985.0,62982.0,0.01804185]
[1719844628366,0.08124304,62983.0,62973.0,0.01804185]
[1719844628581,0.158788,62977.0,62973.0,0.01904185]
[1719844628809,0.011,62978.0,62973.0,0.01904185]
[1719844628810,0.158791,62976.0,62973.0,0.01904185]
[1719844629033,0.158791,62976.0,62973.0,0.01804185]
[1719844629500,0.2276,62977.0,62969.0,0.158831]
[1719844629746,0.476416,62970.0,62969.0,0.158831]
[1719844629984,0.476416,62970.0,62967.0,0.01804185]
[1719844629985,0.317611,62970.0,62967.0,0.01804185]
[1719844630228,0.317611,62970.0,62965.0,0.01804185]
[1719844630431,0.317611,62970.0,62963.0,0.17687285]
[1719844630432,0.158814,62967.0,62963.0,0.17687285]
[1719844630659,0.0636,62971.0,62963.0,0.17687285]
[1719844630660,0.317621,62968.0,62963.0,0.17687285]
[1719844630894,0.158818,62966.0,62963.0,0.17687285]
[1719844631557,0.158819,62965.0,62963.0,0.17687285]
[1719844631776,0.317621,62968.0,62963.0,0.17687285]
[1719844631777,0.15882,62964.0,62963.0,0.17687285]
[1719844631999,0.476461,62964.0,62963.0,0.17687285]
[1719844632454,0.476461,62964.0,62963.0,0.18187285]
[1719844632974,0.476461,62964.0,62963.0,0.18287285]
[1719844633221,0.15882,62964.0,62963.0,0.18287285]
[1719844633471,0.158817,62966.0,62965.0,0.01804185]
[1719844633722,0.317612,62970.0,62967.0,0.01804185]
[1719844633964,0.158786,62978.0,62975.0,0.01804185]
[1719844634185,0.258785,62978.0,62973.0,0.01804185]
[1719844634394,0.417575,62978.0,62974.0,0.01804185]
[1719844634620,0.417575,62978.0,62970.0,0.158831]
[1719844634621,0.1,62978.0,62977.0,0.01804185]
[1719844634846,0.379653,62982.0,62977.0,0.01804185]
[1719844634847,0.158781,62980.0,62977.0,0.01804185]
[1719844635079,0.158781,62980.0,62970.0,0.158831]
[1719844635080,0.0601,62987.0,62981.0,0.01804185]
[1719844635291,0.158753,62991.0,62984.0,0.01804185]
[1719844635534,0.1413,62995.0,62985.0,0.01804185]
[1719844635535,0.158755,62990.0,62985.0,0.01804185]
[1719844635738,0.158755,62990.0,62984.0,0.158831]
[1719844635739,0.158755,62990.0,62988.0,0.01804185]
[1719844636364,0.317493,62994.0,62989.0,0.01804185]
[1719844636605,0.158748,62993.0,62991.0,0.01804185]
[1719844636825,0.15875,62992.0,62991.0,0.01804185]
[1719844637030,0.158753,62991.0,62988.0,0.01804185]
[1719844637352,0.158753,62991.0,62990.0,0.01804185]
[1719844637567,0.158755,62990.0,62985.0,0.01904185]
[1719844637755,0.158765,62986.0,62985.0,0.001]
[1719844638132,0.476295,62986.0,62985.0,0.001]
[1719844638742,0.476302,62985.0,62984.0,0.158831]
[1719844640531,0.794837,62985.0,62984.0,0.158831]
[1719844640754,0.796737,62985.0,62984.0,0.158831]
[1719844640953,0.0019,62980.0,62977.0,0.158831]
[1719844641228,0.55570204,62978.0,62977.0,0.158831]
[1719844641440,0.87327604,62978.0,62977.0,0.158831]
[1719844641874,0.0019,62977.0,62970.0,0.158831]
[1719844642083,0.158803,62971.0,62970.0,0.158831]
[1719844642281,0.794015,62971.0,62970.0,0.158831]
[1719844643123,0.794015,62971.0,62970.0,0.159831]
[1719844643329,0.794015,62971.0,62970.0,0.158831]
[1719844643774,0.797015,62971.0,62970.0,0.158831]
[1719844644031,0.794015,62971.0,62970.0,0.158831]
[1719844644435,1.114621,62971.0,62970.0,0.158831]
[1719844644674,1.25857707,62971.0,62970.0,0.158831]
[1719844644887,0.158836,62958.0,62957.0,0.17687285]
[1719844645128,0.158832,62960.0,62959.0,0.01804185]
[1719844645387,0.158828,62962.0,62961.0,0.01804185]
[1719844645924,0.158828,62962.0,62957.0,0.158831]
[1719844645925,0.158811,62968.0,62965.0,0.01804185]
[1719844646131,0.158815,62966.0,62965.0,0.01804185]
[1719844646405,0.158815,62966.0,62957.0,0.158831]
[1719844646406,0.158818,62965.0,62964.0,0.01804185]
[1719844646708,0.07138346,62965.0,62964.0,0.01804185]
[1719844646922,0.07138346,62965.0,62963.0,0.01804185]
[1719844647060,0.15882,62964.0,62963.0,0.01804185]
[1719844647268,0.158836,62958.0,62957.0,0.158831]
[1719844647482,0.07138484,62964.0,62953.0,0.01804185]
[1719844647483,0.07141778,62960.0,62953.0,0.01804185]
[1719844647689,0.158846,62954.0,62953.0,0.01804185]
[1719844648928,0.16895371,62954.0,62953.0,0.000924]
[1719844649132,0.16995371,62954.0,62953.0,0.000924]
[1719844649307,0.48764571,62954.0,62953.0,0.000924]
[1719844650315,1.32753838,62954.0,62953.0,0.000924]
[1719844650514,1.12492971,62954.0,62953.0,0.00086711]
[1719844650717,1.28096942,62954.0,62953.0,0.00086711]
[1719844650920,1.27806942,62954.0,62953.0,0.00086711]
[1719844651124,1.13713919,62954.0,62953.0,0.00086711]
[1719844651576,1.13523919,62954.0,62953.0,0.00086711]
[1719844651774,1.12402971,62954.0,62953.0,0.00086711]
[1719844651981,1.12592971,62954.0,62953.0,0.00086711]
[1719844652185,1.13913943,62954.0,62953.0,0.00086711]
[1719844652385,1.13723943,62954.0,62953.0,0.00086711]
[1719844652586,1.12402971,62954.0,62953.0,0.00086711]
[1719844652807,1.24291922,62954.0,62953.0,0.00086711]
[1719844653028,0.87666865,62954.0,62953.0,0.00086711]
[1719844653285,1.71296869,62954.0,62953.0,0.00086711]
[1719844653482,2.10746069,62954.0,62953.0,0.00086711]
[1719844653704,1.78976869,62954.0,62953.0,0.00086711]
[1719844653920,2.05436869,62954.0,62953.0,0.00086711]
[1719844654123,2.47206069,62954.0,62953.0,0.00086711]
[1719844654336,2.6343944,62954.0,62953.0,0.00086711]
[1719844654780,2.8343944,62954.0,62953.0,0.00086711]
[1719844654973,2.8573944,62954.0,62953.0,0.00086711]
[1719844655182,2.8703944,62954.0,62953.0,0.00086711]
[1719844655424,3.0368944,62954.0,62953.0,0.00086711]
[1719844655597,3.3545864,62954.0,62953.0,0.00086711]
[1719844655805,3.3675864,62954.0,62953.0,0.00086711]
[1719844656016,3.3807973,62954.0,62953.0,0.00086711]
[1719844656437,3.3547973,62954.0,62953.0,0.00086711]
[1719844656639,0.317814,62930.0,62926.0,0.47591475]
[1719844656848,0.158914,62927.0,62926.0,0.63474575]
[1719844657055,0.158914,62927.0,62926.0,0.158831]
[1719844657245,0.16876062,62927.0,62926.0,0.158831]
[1719844658011,0.00984662,62927.0,62926.0,0.17687285]
[1719844659229,0.158909,62929.0,62926.0,0.17687285]
[1719844659230,0.158909,62929.0,62927.0,0.01804185]
[1719844659472,0.545383,62936.0,62930.0,0.01804185]
[1719844659473,0.2257,62936.0,62930.0,0.01804185]
[1719844659675,0.2257,62936.0,62931.0,0.01804185]
[1719844659676,0.317788,62935.0,62931.0,0.01804185]
[1719844660083,0.317788,62935.0,62929.0,0.01804185]
[1719844660293,0.158906,62930.0,62929.0,0.01804185]
[1719844660499,0.2257,62936.0,62929.0,0.01804185]
[1719844660731,0.2257,62936.0,62927.0,0.001]
[1719844660732,0.317807,62932.0,62927.0,0.001]
[1719844661105,0.158911,62928.0,62927.0,0.001]
[1719844661332,0.317823,62928.0,62926.0,0.158831]
[1719844661577,0.476742,62927.0,62926.0,0.158831]
[1719844661779,0.79457,62927.0,62926.0,0.158831]
[1719844661991,0.896787,62927.0,62926.0,0.158831]
[1719844662194,0.896787,62927.0,62915.0,0.0639]
[1719844662195,0.158931,62920.0,62919.0,0.01804185]
[1719844662726,0.158931,62920.0,62918.0,0.01804185]
[1719844663046,0.0645,62929.0,62918.0,0.01804185]
[1719844663047,0.158934,62919.0,62918.0,0.01804185]
[1719844663234,0.317869,62919.0,62915.0,0.158831]
[1719844663466,0.158942,62916.0,62915.0,0.158831]
[1719844663657,0.476826,62916.0,62915.0,0.158831]
[1719844663819,0.158942,62916.0,62915.0,0.158831]
[1719844664019,0.476826,62916.0,62915.0,0.158831]
[1719844664221,0.48657614,62916.0,62915.0,0.158831]
[1719844664460,0.16869214,62916.0,62915.0,0.158831]
[1719844664868,0.48757614,62916.0,62915.0,0.161831]
[1719844665043,0.80546014,62916.0,62915.0,0.003]
[1719844665245,1.63463835,62916.0,62915.0,0.003]
[1719844665472,1.49764414,62916.0,62915.0,0.003]
[1719844665673,1.49954414,62916.0,62915.0,0.003]
[1719844665892,1.49764414,62916.0,62915.0,0.003]
[1719844666191,0.48757614,62916.0,62915.0,0.003]
[1719844666367,0.48857614,62916.0,62915.0,0.003]
[1719844666990,0.80646014,62916.0,62915.0,0.003]
[1719844667224,0.158949,62913.0,62912.0,0.01804185]
[1719844667670,0.16865494,62913.0,62912.0,0.01804185]
[1719844667872,0.00970594,62913.0,62912.0,0.01804185]
[1719844668081,0.00970594,62913.0,62912.0,0.15994185]
[1719844668283,0.001,62916.0,62915.0,0.01804185]
[1719844668508,0.001,62916.0,62915.0,0.17687285]
[1719844669507,0.158932,62920.0,62919.0,0.01804185]
[1719844669704,0.1,62923.0,62919.0,0.01804185]
[1719844669910,0.15893,62921.0,62919.0,0.01804185]
[1719844670487,0.15893,62921.0,62919.0,0.01799367]
[1719844670730,0.014,62920.0,62919.0,0.01799367]
[1719844671136,0.172932,62920.0,62915.0,0.158831]
[1719844671352,0.172932,62920.0,62915.0,0.17682467]
[1719844671587,0.172932,62920.0,62919.0,0.01799367]
[1719844671755,0.172932,62920.0,62915.0,0.158831]
[1719844671756,0.158942,62916.0,62915.0,0.158831]
[1719844672335,0.476826,62916.0,62915.0,0.158831]
[1719844673114,0.79471,62916.0,62915.0,0.158831]
[1719844673291,1.11454218,62916.0,62915.0,0.158831]
[1719844673735,1.112594,62916.0,62915.0,0.158831]
[1719844674395,1.11454218,62916.0,62915.0,0.158831]
[1719844674595,1.24178591,62916.0,62915.0,0.158831]
[1719844674711,0.80871,62916.0,62915.0,0.158831]
[1719844675121,0.82271,62916.0,62915.0,0.158831]
[1719844675347,0.79471,62916.0,62915.0,0.158831]
[1719844675549,0.80871,62916.0,62915.0,0.158831]
[1719844675986,0.172942,62916.0,62915.0,0.17682467]
[1719844676194,0.490826,62916.0,62915.0,0.158831]
[1719844676797,0.476826,62916.0,62915.0,0.17682467]
[1719844676973,0.158944,62915.0,62914.0,0.01799367]
[1719844677426,0.158944,62915.0,62913.0,0.158831]
[1719844677639,0.0651,62920.0,62915.0,0.01799367]
[1719844677640,0.158933,62920.0,62915.0,0.01799367]
[1719844677844,0.158934,62919.0,62918.0,0.01799367]
[1719844678029,0.317862,62921.0,62918.0,0.01799367]
[1719844678157,0.00194818,62930.0,62922.0,0.01799367]
[1719844678359,0.15892,62925.0,62922.0,0.158831]
[1719844678559,0.15892,62925.0,62922.0,0.17682467]
[1719844678764,0.158924,62923.0,62922.0,0.158831]
[1719844679245,0.48644477,62923.0,62922.0,0.158831]
[1719844679453,0.80429277,62923.0,62922.0,0.158831]
[1719844679875,0.158939,62917.0,62916.0,0.01799367]
[1719844680362,0.158947,62914.0,62913.0,0.158831]
[1719844680570,0.00965737,62917.0,62914.0,0.01799367]
[1719844680780,0.00965737,62917.0,62913.0,0.158831]
[1719844680781,0.158945,62915.0,62913.0,0.158831]
[1719844681198,0.317873,62919.0,62916.0,0.01799367]
[1719844681199,0.158936,62919.0,62916.0,0.01799367]
[1719844681397,0.158936,62919.0,62913.0,0.158831]
[1719844681398,0.2257,62921.0,62917.0,0.01799367]
[1719844681833,0.2257,62921.0,62918.0,0.01799367]
[1719844681834,0.158932,62920.0,62918.0,0.01799367]
[1719844682042,0.158932,62920.0,62919.0,0.01799367]
[1719844682260,0.2257,62921.0,62911.0,0.009229]
[1719844682487,0.38463,62921.0,62911.0,0.009229]
[1719844682710,0.38463,62921.0,62911.0,0.16806]
[1719844682711,0.01,62915.0,62911.0,0.16806]
[1719844683120,0.543518,62929.0,62915.0,0.078]
[1719844683355,0.1,62928.0,62915.0,0.078]
[1719844683791,0.258911,62928.0,62916.0,0.02]
[1719844683999,0.258911,62928.0,62915.0,0.078]
[1719844684000,0.39717204,62927.0,62915.0,0.078]
[1719844684200,0.2257,62924.0,62915.0,0.078]
[1719844684432,0.158932,62920.0,62915.0,0.078]
[1719844684656,0.168932,62920.0,62915.0,0.078]
[1719844685368,0.158939,62917.0,62911.0,0.16806]
[1719844685827,0.2257,62919.0,62911.0,0.16806]
[1719844686039,0.158942,62916.0,62911.0,0.16806]
[1719844686439,0.2257,62919.0,62911.0,0.16806]
[1719844686440,0.15895,62913.0,62911.0,0.16806]
[1719844686652,0.2257,62919.0,62911.0,0.16806]
[1719844687058,0.158936,62919.0,62911.0,0.16806]
[1719844687259,0.158937,62918.0,62911.0,0.16806]
[1719844687674,0.158932,62920.0,62911.0,0.16806]
[1719844688007,0.158932,62920.0,62912.0,0.1401]
[1719844688216,0.169932,62920.0,62912.0,0.1401]
[1719844688411,0.158932,62920.0,62912.0,0.1601]
[1719844688616,0.006,62917.0,62912.0,0.1601]
[1719844688829,0.006,62917.0,62912.0,0.1401]
[1719844689355,0.3646,62933.0,62915.0,0.178944]
[1719844689558,0.3646,62933.0,62916.0,0.02]
[1719844689559,0.01,62920.0,62916.0,0.02]
[1719844689977,0.021,62920.0,62919.0,0.239734]
[1719844690182,0.011,62920.0,62919.0,0.418565]
[1719844690358,0.011,62920.0,62919.0,0.736434]
[1719844690559,0.011,62920.0,62919.0,0.801334]
[1719844691006,0.011,62920.0,62919.0,1.59941098]
[1719844691686,0.011,62920.0,62919.0,1.89941098]
[1719844691892,0.011,62920.0,62919.0,1.69941098]
[1719844692043,0.158875,62943.0,62929.0,0.304608]
[1719844692408,0.47591475,62937.0,62930.0,0.02]
[1719844692659,0.16863235,62942.0,62929.0,0.304531]
[1719844692847,0.00973896,62936.0,62929.0,0.463438]
[1719844692981,0.158874,62943.0,62929.0,0.483438]
[1719844693187,0.158874,62943.0,62930.0,0.158906]
[1719844693386,0.00975435,62942.0,62930.0,0.178906]
[1719844693586,0.00975435,62942.0,62930.0,0.158906]
[1719844693791,0.005,62937.0,62929.0,0.46344]
[1719844694024,0.005,62937.0,62929.0,0.304531]
[1719844694728,0.00973896,62936.0,62929.0,0.304531]
[1719844694935,0.005,62937.0,62929.0,0.304531]
[1719844695150,0.0097364,62935.0,62929.0,0.304531]
[1719844695587,0.07934304,62934.0,62929.0,0.158831]
[1719844695838,0.00973383,62934.0,62929.0,0.158831]
[1719844696246,0.394589,62937.0,62929.0,0.158831]
[1719844696461,0.00973127,62933.0,62929.0,0.158831]
[1719844696886,0.003,62935.0,62929.0,0.158831]
[1719844697127,0.158891,62936.0,62929.0,0.158831]
[1719844697128,0.0097287,62932.0,62929.0,0.158831]
[1719844697324,0.003,62934.0,62929.0,0.158831]
[1719844697473,0.00972613,62931.0,62929.0,0.158831]
[1719844697674,0.003,62934.0,62929.0,0.158831]
[1719844698947,0.004,62934.0,62929.0,0.158831]
[1719844699282,0.001,62934.0,62929.0,0.158831]
[1719844699695,0.0657,62934.0,62929.0,0.158831]
[1719844699893,0.16862865,62933.0,62929.0,0.158831]
[1719844700073,0.00972965,62933.0,62929.0,0.158831]
[1719844700281,0.158906,62930.0,62929.0,0.158831]
[1719844700692,0.00974331,62930.0,62929.0,0.158831]
[1719844700930,0.16864931,62930.0,62929.0,0.158831]
[1719844701550,0.15891,62929.0,62922.0,0.158831]
[1719844701756,0.00974331,62930.0,62922.0,0.158831]
[1719844701757,0.317828,62927.0,62922.0,0.158831]
[1719844702205,0.16869571,62926.0,62922.0,0.158831]
[1719844704053,0.00977871,62926.0,62922.0,0.158831]
[1719844704255,0.00977871,62926.0,62917.0,0.08503299]
[1719844704523,0.00977871,62926.0,62922.0,0.158831]
[1719844704744,0.00977614,62925.0,62922.0,0.158831]
[1719844704893,0.151712,62928.0,62922.0,0.158831]
[1719844705154,0.00977357,62924.0,62922.0,0.158831]
[1719844705358,0.2257,62932.0,62922.0,0.158831]
[1719844705359,0.006,62926.0,62922.0,0.158831]
[1719844705557,0.00977073,62923.0,62922.0,0.158831]
[1719844705770,0.158901,62932.0,62922.0,0.158831]
[1719844706211,0.00979154,62931.0,62922.0,0.158831]
[1719844706846,0.158899,62933.0,62922.0,0.158831]
[1719844707050,0.00978897,62930.0,62922.0,0.158831]
[1719844707275,0.0097941,62932.0,62922.0,0.158831]
[1719844707498,0.009,62925.0,62922.0,0.158831]
[1719844707919,0.00977357,62924.0,62922.0,0.158831]
[1719844708178,0.00977357,62924.0,62913.0,0.47155701]
[1719844708179,0.1358,62923.0,62913.0,0.47155701]
[1719844708383,0.1358,62923.0,62912.0,0.158831]
[1719844708384,0.294724,62923.0,62912.0,0.158831]
[1719844708614,0.00974362,62922.0,62912.0,0.158831]
[1719844709129,0.16866962,62922.0,62912.0,0.158831]
[1719844709558,0.00974362,62922.0,62912.0,0.17773424]
[1719844710868,0.00974362,62922.0,62913.0,0.02]
[1719844711042,0.01474362,62922.0,62913.0,0.02]
[1719844711252,0.005,62922.0,62913.0,0.02]
[1719844711462,0.00973068,62921.0,62914.0,0.02]
[1719844711672,0.00973068,62921.0,62918.0,0.158936]
[1719844711869,0.00973068,62921.0,62919.0,0.0815]
[1719844712205,0.27785656,62930.0,62920.0,0.066]
[1719844712206,0.01,62922.0,62920.0,0.066]
[1719844712471,0.005,62922.0,62920.0,0.066]
[1719844712642,0.09515965,62930.0,62922.0,0.02]
[1719844712841,0.09515965,62930.0,62920.0,0.224931]
[1719844712842,0.09515965,62931.0,62921.0,0.02]
[1719844713077,0.00975121,62929.0,62921.0,0.02]
[1719844713227,0.00975377,62930.0,62921.0,0.02]
[1719844713431,0.16866077,62930.0,62920.0,0.066]
[1719844713608,0.158907,62930.0,62920.0,0.066]
[1719844713814,0.00975121,62929.0,62920.0,0.066]
[1719844714323,0.004,62921.0,62920.0,0.066]
[1719844714630,0.25408214,62931.0,62920.0,0.066]
[1719844714631,0.158904,62931.0,62920.0,0.066]
[1719844715052,0.004,62921.0,62920.0,0.066]
[1719844715455,0.004,62921.0,62919.0,0.240331]
[1719844715721,0.008,62921.0,62919.0,0.240331]
[1719844715896,0.008,62921.0,62919.0,0.158831]
[1719844716362,0.0097044,62920.0,62919.0,0.158831]
[1719844717283,0.158923,62924.0,62919.0,0.158831]
[1719844717504,0.0097044,62920.0,62919.0,0.158831]
[1719844717704,0.004,62921.0,62919.0,0.158831]
[1719844717887,0.0097044,62920.0,62919.0,0.158831]
[1719844718568,0.005,62924.0,62919.0,0.158831]
[1719844719109,0.004,62921.0,62919.0,0.158831]
[1719844719530,0.0097044,62920.0,62919.0,0.158831]
[1719844719942,0.004,62921.0,62919.0,0.158831]
[1719844720092,0.158916,62927.0,62919.0,0.158831]
[1719844720297,0.28013392,62977.0,62919.0,0.158831]
[1719844720298,0.09521703,62930.0,62922.0,0.0794]
[1719844720503,0.09521703,62931.0,62922.0,0.0794]
[1719844720956,0.09521703,62932.0,62922.0,0.0794]
[1719844721627,0.09521703,62931.0,62922.0,0.0794]
[1719844722170,0.11902129,62932.0,62922.0,0.0794]
[1719844722171,0.09521703,62930.0,62922.0,0.0794]
[1719844722369,0.09521703,62931.0,62922.0,0.0794]
[1719844722658,0.014,62932.0,62922.0,0.0794]
[1719844722659,0.158907,62930.0,62922.0,0.0794]
[1719844722860,0.158907,62930.0,62919.0,0.158831]
[1719844722861,0.158915,62927.0,62919.0,0.158831]
[1719844723039,0.0649,62926.0,62919.0,0.158831]
[1719844723191,0.005,62924.0,62919.0,0.158831]
[1719844724301,0.0097121,62923.0,62919.0,0.158831]
[1719844724892,0.0097121,62923.0,62919.0,0.178831]
[1719844725094,0.159746,62930.0,62919.0,0.178831]
[1719844725300,0.172746,62930.0,62919.0,0.158831]
[1719844725474,0.00972251,62929.0,62919.0,0.158831]
[1719844726207,0.004,62923.0,62922.0,0.1425]
[1719844726619,0.008,62923.0,62922.0,0.1425]
[1719844727613,0.008,62923.0,62919.0,0.317763]
[1719844728040,0.008,62923.0,62919.0,0.158831]
[1719844728041,0.07934304,62922.0,62919.0,0.158831]
[1719844728241,0.00970197,62921.0,62919.0,0.158831]
[1719844728449,0.2883,62925.0,62912.0,0.64929125]
[1719844728650,0.2257,62920.0,62912.0,0.64929125]
[1719844728849,0.00969396,62919.0,62912.0,0.49046025]